[Event "44th Chess Olympiad Women 2022"]
[Site "Chennai"]
[Date "2022.08.02"]
[Round "5.39"]
[White "Miranda Vargas, Analia Karen"]
[Black "Gamage, Desandhi Dhihansa"]
[Result "1-0"]
[ECO "B50"]
[WhiteElo "1723"]
[BlackElo "1561"]
[Annotator "NA RC COMBH"]
[PlyCount "83"]
[EventDate "2022.07.29"]
[EventType "team-tourn"]
[EventCountry "IND"]
[SourceTitle "playchess.com"]
[Source "ChessBase"]
[SourceQuality "1"]
[WhiteTeam "Ecuador"]
[BlackTeam "Sri Lanka"]
[WhiteTeamCountry "ECU"]
[BlackTeamCountry "SRI"]
[TimeControl "40/5400+30:1800+30"]

1. e4 {[%emt 0:00:02]} c5 {[%emt 0:00:05]} 2. Nf3 {[%emt 0:00:05]} d6 {[%emt 0:00:04]} 3. c3 {[%emt 0:00:05]} Nf6 {[%emt 0:00:04]} 4. h3 {[%emt 0:00:09]} Nbd7 {[%emt 0:00:30]} 5. Bd3 {[%emt 0:00:33]} g6 {[%emt 0:01:54]} 6. O-O {[%emt 0:02:49]} Bg7 {[%emt 0:01:01]} 7. Re1 {[%emt 0:00:19]} O-O {[%emt 0:02:48]} 8. Bf1 {[%emt 0:01:49]} Qc7 {[%emt 0:03:48]} 9. d4 {[%emt 0:00:37]} cxd4 {[%emt 0:01:54]} 10. cxd4 {[%emt 0:00:42]} a6 {[%emt 0:05:15]} 11. Nc3 {[%emt 0:00:54]} e5 {[%emt 0:10:37]} 12. Be3 {[%emt 0:06:08]} b5 {[%emt 0:01:58]} 13. Rc1 {[%emt 0:02:13]} Qd8 {[%emt 0:01:13]} 14. dxe5 {[%emt 0:14:33]} dxe5 {[%emt 0:00:53]} 15. Qd6 {[%emt 0:10:39]} Re8 {[%emt 0:03:42]} 16. Red1 {[%emt 0:04:22]} Bb7 {[%emt 0:06:18]} 17. a4 {[%emt 0:04:34]} Bf8 {[%emt 0:04:48]} 18. Qd2 {[%emt 0:01:28]} b4 {[%emt 0:13:04]} 19. Na2 {[%emt 0:11:29]} Re6 {[%emt 0:09:51]} 20. Bc4 {[%emt 0:09:16]} Rd6 {[%emt 0:03:14]} 21. Qc2 {[%emt 0:03:38]} Nxe4 {[%emt 0:08:03]} 22. Qb3 {[%emt 0:06:44]} Qe7 {[%emt 0:08:39]} 23. Rxd6 {[%emt 0:02:28]} Nxd6 {[%emt 0:00:15]} 24. Qxb4 {[%emt 0:04:23]} Rb8 {[%emt 0:02:42]} 25. Qd2 {[%emt 0:01:57]} Nxc4 {[%emt 0:01:56]} 26. Rxc4 {[%emt 0:00:01]} Qe6 {[%emt 0:00:23]} 27. Rc7 {[%emt 0:03:09]} Bd6 {[%emt 0:03:10]} 28. Rc1 {[%emt 0:01:47]} Nf6 {[%emt 0:02:06]} 29. Nc3 {[%emt 0:02:18]} Bb4 {[%emt 0:00:31]} 30. Qd1 {[%emt 0:01:05]} Ba5 {[%emt 0:01:08]} 31. Ng5 {[%emt 0:01:25]} Qc6 {[%emt 0:00:41]} 32. Nce4 {[%emt 0:00:53]} Rd8 {[%emt 0:01:56]} 33. Qf1 {[%emt 0:00:48]} Qxc1 {[%emt 0:00:57]} 34. Nxf6+ {[%emt 0:00:07]} Kg7 {[%emt 0:00:17]} 35. Qxc1 {[%emt 0:00:07]} Kxf6 {[%emt 0:00:07]} 36. Nxh7+ {[%emt 0:00:26]} Kg7 {[%emt 0:00:12]} 37. Ng5 {[%emt 0:00:07]} Rd6 {[%emt 0:00:47]} 38. b4 {[%emt 0:01:08]} Bxb4 {[%emt 0:00:57]} 39. Qc4 {[%emt 0:00:26]} Bd5 {[%emt 0:00:52]} 40. Qxb4 {[%emt 0:00:08]} Rd7 {[%emt 0:00:06]} 41. Qb8 {[%emt 0:30:35]} Kh6 {[%emt 0:01:45]} 42. Qh8# {[%emt 0:00:00]} 1-0

[Event "44th Chess Olympiad Women 2022"]
[Site "Chennai"]
[Date "2022.08.02"]
[Round "5.39"]
[White "Ranasinghe, S D"]
[Black "Ortiz Verdezoto, Anahi"]
[Result "1/2-1/2"]
[ECO "A14"]
[WhiteElo "1687"]
[BlackElo "2046"]
[Annotator "NA RC"]
[PlyCount "76"]
[EventDate "2022.07.29"]
[EventType "team-tourn"]
[EventCountry "IND"]
[SourceTitle "playchess.com"]
[Source "ChessBase"]
[SourceQuality "1"]
[WhiteTeam "Sri Lanka"]
[BlackTeam "Ecuador"]
[WhiteTeamCountry "SRI"]
[BlackTeamCountry "ECU"]
[TimeControl "40/5400+30:1800+30"]

1. Nf3 {[%emt 0:00:25]} Nf6 {[%emt 0:00:10]} 2. g3 {[%emt 0:00:07]} d5 {[%emt 0:00:39]} 3. c4 {[%emt 0:00:53]} e6 {[%emt 0:00:09]} 4. Bg2 {[%emt 0:00:32]} c6 {[%emt 0:00:38]} 5. b3 {[%emt 0:00:41]} Be7 {[%emt 0:01:36]} 6. Bb2 {[%emt 0:03:20]} O-O {[%emt 0:02:06]} 7. O-O {[%emt 0:00:32]} b6 {[%emt 0:01:01]} 8. d3 {[%emt 0:01:33]} Bb7 {[%emt 0:00:42]} 9. cxd5 {[%emt 0:00:10]} cxd5 {[%emt 0:07:07]} 10. Nc3 {[%emt 0:02:47]} Nc6 {[%emt 0:02:12]} 11. Nb5 {[%emt 0:00:44]} Re8 {[%emt 0:06:12]} 12. Rc1 {[%emt 0:00:26]} a6 {[%emt 0:03:55]} 13. Nbd4 {[%emt 0:00:13]} Rc8 {[%emt 0:00:40]} 14. Nxc6 {[%emt 0:00:41]} Rxc6 {[%emt 0:02:01]} 15. Rxc6 {[%emt 0:00:10]} Bxc6 {[%emt 0:00:02]} 16. Qc2 {[%emt 0:00:06]} Qa8 {[%emt 0:09:52]} 17. Ne5 {[%emt 0:00:28]} Rc8 {[%emt 0:00:19]} 18. Nxc6 {[%emt 0:00:47]} Rxc6 {[%emt 0:00:11]} 19. Qd2 {[%emt 0:00:09]} Qc8 {[%emt 0:05:12]} 20. Rc1 {[%emt 0:00:10]} a5 {[%emt 0:05:10]} 21. Rxc6 {[%emt 0:00:35]} Qxc6 {[%emt 0:00:01]} 22. Qc3 {[%emt 0:03:45]} Qxc3 {[%emt 0:04:12]} 23. Bxc3 {[%emt 0:02:34]} Bc5 {[%emt 0:00:02]} 24. Bxf6 {[%emt 0:00:47]} gxf6 {[%emt 0:00:02]} 25. a4 {[%emt 0:00:58]} Kf8 {[%emt 0:00:18]} 26. e3 {[%emt 0:00:06]} d4 {[%emt 0:00:09]} 27. e4 {[%emt 0:01:22]} Bb4 {[%emt 0:02:19]} 28. Kf1 {[%emt 0:00:07]} Ke7 {[%emt 0:00:04]} 29. Ke2 {[%emt 0:00:05]} Kd6 {[%emt 0:00:08]} 30. f4 {[%emt 0:00:21]} Bc3 {[%emt 0:00:18]} 31. Bf3 {[%emt 0:00:14]} Bb2 {[%emt 0:01:44]} 32. Bh5 {[%emt 0:00:54]} Ke7 {[%emt 0:00:02]} 33. Bg4 {[%emt 0:01:08]} Bc1 {[%emt 0:00:13]} 34. f5 {[%emt 0:01:12]} h6 {[%emt 0:04:58]} 35. Kd1 {[%emt 0:00:48]} Be3 {[%emt 0:00:25]} 36. Ke2 {[%emt 0:00:05]} Kd6 {[%emt 0:05:27]} 37. Bh5 {[%emt 0:05:07]} Ke7 {[%emt 0:00:09]} 38. Bg4 {[%emt 0:00:04]} Kd6 {[%emt 0:00:04]} 1/2-1/2

[Event "44th Chess Olympiad Women 2022"]
[Site "Chennai"]
[Date "2022.08.02"]
[Round "5.39"]
[White "Abeysinghe, H M H Janandani"]
[Black "Nunez Giler, Fanny"]
[Result "0-1"]
[ECO "B23"]
[WhiteElo "1516"]
[BlackElo "1660"]
[Annotator "NA RC COMBH"]
[PlyCount "80"]
[EventDate "2022.07.29"]
[EventType "team-tourn"]
[EventCountry "IND"]
[SourceTitle "playchess.com"]
[Source "ChessBase"]
[SourceQuality "1"]
[WhiteTeam "Sri Lanka"]
[BlackTeam "Ecuador"]
[WhiteTeamCountry "SRI"]
[BlackTeamCountry "ECU"]
[TimeControl "40/5400+30:1800+30"]

1. e4 {[%emt 0:00:11]} c5 {[%emt 0:00:47]} 2. Nc3 {[%emt 0:00:26]} Nc6 {[%emt 0:00:06]} 3. Bb5 {[%emt 0:00:12]} Nd4 {[%emt 0:00:09]} 4. Bc4 {[%emt 0:00:25]} a6 {[%emt 0:00:16]} 5. a4 {[%emt 0:00:59]} e6 {[%emt 0:00:15]} 6. Nge2 {[%emt 0:00:59]} Nf6 {[%emt 0:14:15]} 7. d3 {[%emt 0:01:33]} d5 {[%emt 0:19:22]} 8. exd5 {[%emt 0:04:51]} exd5 {[%emt 0:03:20]} 9. Ba2 {[%emt 0:00:26]} Ne6 {[%emt 0:06:10]} 10. O-O {[%emt 0:06:52]} Be7 {[%emt 0:02:06]} 11. Nf4 {[%emt 0:03:04]} Nxf4 {[%emt 0:01:34]} 12. Bxf4 {[%emt 0:00:13]} O-O {[%emt 0:00:55]} 13. Qf3 {[%emt 0:05:04]} Be6 {[%emt 0:07:29]} 14. Rfe1 {[%emt 0:03:04]} Qd7 {[%emt 0:01:21]} 15. h3 {[%emt 0:03:02]} b5 {[%emt 0:08:17]} 16. Bg5 {[%emt 0:06:49]} Rfd8 {[%emt 0:06:15]} 17. Qe2 {[%emt 0:16:09]} h6 {[%emt 0:08:15]} 18. Bh4 {[%emt 0:01:07]} b4 {[%emt 0:04:58]} 19. Nxd5 {[%emt 0:10:02]} Nxd5 {[%emt 0:01:18]} 20. Bxd5 {[%emt 0:00:08]} Bxh4 {[%emt 0:02:36]} 21. Bxa8 {[%emt 0:00:30]} Rxa8 {[%emt 0:00:11]} 22. Qe4 {[%emt 0:00:22]} Qd8 {[%emt 0:00:35]} 23. Qc6 {[%emt 0:03:07]} Be7 {[%emt 0:09:50]} 24. Qe4 {[%emt 0:01:08]} Bf6 {[%emt 0:00:56]} 25. Reb1 {[%emt 0:09:26]} Bd5 {[%emt 0:00:36]} 26. Qe1 {[%emt 0:00:33]} Qe8 {[%emt 0:00:26]} 27. Qd2 {[%emt 0:00:43]} Qc6 {[%emt 0:00:26]} 28. g3 {[%emt 0:02:55]} Be6 {[%emt 0:00:17]} 29. Kh2 {[%emt 0:00:36]} Qd7 {[%emt 0:00:34]} 30. h4 {[%emt 0:00:53]} Qd6 {[%emt 0:00:17]} 31. c3 {[%emt 0:03:25]} Bxh4 {[%emt 0:00:36]} 32. cxb4 {[%emt 0:01:41]} cxb4 {[%emt 0:00:14]} 33. Re1 {[%emt 0:01:14]} Bf6 {[%emt 0:00:30]} 34. Rac1 {[%emt 0:01:30]} Qd5 {[%emt 0:00:33]} 35. Qe2 {[%emt 0:07:20]} Rd8 {[%emt 0:00:38]} 36. Red1 {[%emt 0:02:02]} Bd7 {[%emt 0:00:23]} 37. Ra1 {[%emt 0:00:35]} Bc6 {[%emt 0:00:05]} 38. f4 {[%emt 0:01:15]} Re8 {[%emt 0:00:14]} 39. Qf1 {[%emt 0:02:36]} Qh5+ {[%emt 0:00:19]} 40. Kg1 {[%emt 0:00:56]} Bd4+ {[%emt 0:00:40]} 0-1

[Event "44th Chess Olympiad Women 2022"]
[Site "Chennai"]
[Date "2022.08.02"]
[Round "5.40"]
[White "Koljevic, Nikolina"]
[Black "Cho, Yeonhee"]
[Result "1-0"]
[ECO "C48"]
[WhiteElo "2014"]
[BlackElo "1427"]
[Annotator "NA RC"]
[PlyCount "74"]
[EventDate "2022.07.29"]
[EventType "team-tourn"]
[EventCountry "IND"]
[SourceTitle "playchess.com"]
[Source "ChessBase"]
[SourceQuality "1"]
[WhiteTeam "Montenegro"]
[BlackTeam "Korea"]
[WhiteTeamCountry "MNE"]
[BlackTeamCountry "KOR"]
[TimeControl "40/5400+30:1800+30"]

1. e4 {[%emt 0:00:02]} e5 {[%emt 0:00:04]} 2. Nc3 {[%emt 0:00:06]} Nc6 {[%emt 0:00:30]} 3. Nf3 {[%emt 0:00:07]} Nf6 {[%emt 0:01:10]} 4. Bb5 {[%emt 0:00:30]} Bc5 {[%emt 0:07:11]} 5. O-O {[%emt 0:00:54]} d6 {[%emt 0:00:19]} 6. d4 {[%emt 0:00:45]} exd4 {[%emt 0:00:55]} 7. Nxd4 {[%emt 0:00:07]} Bd7 {[%emt 0:00:08]} 8. Nf5 {[%emt 0:05:55]} O-O {[%emt 0:03:48]} 9. Bg5 {[%emt 0:06:44]} Be6 {[%emt 0:05:08]} 10. Bxc6 {[%emt 0:03:36]} bxc6 {[%emt 0:00:05]} 11. Qf3 {[%emt 0:09:15]} Bxf5 {[%emt 0:12:49]} 12. Qxf5 {[%emt 0:00:09]} Bd4 {[%emt 0:02:41]} 13. Ne2 {[%emt 0:08:31]} Bxb2 {[%emt 0:23:40]} 14. Rab1 {[%emt 0:02:10]} Rb8 {[%emt 0:00:05]} 15. c3 {[%emt 0:05:07]} Re8 {[%emt 0:04:08]} 16. Nd4 {[%emt 0:27:34]} Qd7 {[%emt 0:07:36]} 17. Qxd7 {[%emt 0:05:43]} Nxd7 {[%emt 0:00:04]} 18. Nxc6 {[%emt 0:00:08]} Rb6 {[%emt 0:02:08]} 19. Ne7+ {[%emt 0:00:38]} Kf8 {[%emt 0:00:21]} 20. Nd5 {[%emt 0:00:06]} Rb7 {[%emt 0:05:58]} 21. Bf4 {[%emt 0:07:45]} Ne5 {[%emt 0:17:44]} 22. Rfd1 {[%emt 0:08:39]} Reb8 {[%emt 0:02:13]} 23. Nxc7 {[%emt 0:01:19]} Bxc3 {[%emt 0:00:48]} 24. Rxb7 {[%emt 0:01:15]} Rxb7 {[%emt 0:00:04]} 25. Nd5 {[%emt 0:00:30]} Ba5 {[%emt 0:00:47]} 26. Ne3 {[%emt 0:02:53]} Bc7 {[%emt 0:01:24]} 27. h3 {[%emt 0:00:40]} f6 {[%emt 0:01:01]} 28. Nf5 {[%emt 0:01:07]} Rb6 {[%emt 0:00:48]} 29. Rc1 {[%emt 0:00:58]} Rb7 {[%emt 0:00:32]} 30. Be3 {[%emt 0:01:02]} g6 {[%emt 0:00:37]} 31. Nd4 {[%emt 0:00:03]} Kf7 {[%emt 0:00:24]} 32. Nb5 {[%emt 0:01:17]} Bb8 {[%emt 0:00:10]} 33. a4 {[%emt 0:00:20]} a6 {[%emt 0:00:15]} 34. Nc3 {[%emt 0:00:49]} Ke6 {[%emt 0:01:04]} 35. Nd5 {[%emt 0:00:29]} Nd3 {[%emt 0:00:43]} 36. Rc8 {[%emt 0:00:38]} Kf7 {[%emt 0:00:30]} 37. Rc6 {[%emt 0:00:27]} Nb4 {[%emt 0:00:00]} 1-0

[Event "44th Chess Olympiad Women 2022"]
[Site "Chennai"]
[Date "2022.08.02"]
[Round "5.40"]
[White "Park, Sunwoo"]
[Black "Milovic, Aleksandra"]
[Result "1-0"]
[ECO "B01"]
[WhiteElo "1773"]
[BlackElo "2129"]
[Annotator "NA RC"]
[PlyCount "155"]
[EventDate "2022.07.29"]
[EventType "team-tourn"]
[EventCountry "IND"]
[SourceTitle "playchess.com"]
[Source "ChessBase"]
[SourceQuality "1"]
[WhiteTeam "Korea"]
[BlackTeam "Montenegro"]
[WhiteTeamCountry "KOR"]
[BlackTeamCountry "MNE"]
[TimeControl "40/5400+30:1800+30"]

1. e4 {[%emt 0:00:02]} d5 {[%emt 0:00:04]} 2. exd5 {[%emt 0:00:07]} Nf6 {[%emt 0:00:04]} 3. d4 {[%emt 0:00:23]} Bg4 {[%emt 0:00:33]} 4. f3 {[%emt 0:00:39]} Bf5 {[%emt 0:00:57]} 5. Bb5+ {[%emt 0:03:29]} Nbd7 {[%emt 0:06:15]} 6. Nc3 {[%emt 0:01:02]} a6 {[%emt 0:01:27]} 7. Ba4 {[%emt 0:00:13]} b5 {[%emt 0:01:42]} 8. Bb3 {[%emt 0:00:10]} Nb6 {[%emt 0:00:15]} 9. Nge2 {[%emt 0:01:39]} Nfxd5 {[%emt 0:02:50]} 10. Nxd5 {[%emt 0:01:18]} Nxd5 {[%emt 0:00:04]} 11. Ng3 {[%emt 0:01:14]} Bg6 {[%emt 0:04:20]} 12. O-O {[%emt 0:01:21]} e6 {[%emt 0:00:43]} 13. f4 {[%emt 0:06:34]} c5 {[%emt 0:25:25]} 14. c4 {[%emt 0:12:00]} Nb6 {[%emt 0:00:19]} 15. f5 {[%emt 0:15:21]} exf5 {[%emt 0:00:13]} 16. Nxf5 {[%emt 0:01:30]} Bxf5 {[%emt 0:01:39]} 17. Rxf5 {[%emt 0:00:30]} Be7 {[%emt 0:01:11]} 18. cxb5 {[%emt 0:09:11]} c4 {[%emt 0:04:47]} 19. Bc2 {[%emt 0:00:33]} g6 {[%emt 0:00:21]} 20. Rf1 {[%emt 0:04:06]} O-O {[%emt 0:01:58]} 21. Bh6 {[%emt 0:02:09]} Re8 {[%emt 0:00:16]} 22. Qf3 {[%emt 0:05:48]} f6 {[%emt 0:01:04]} 23. Qg4 {[%emt 0:06:07]} Kf7 {[%emt 0:01:16]} 24. Rae1 {[%emt 0:02:50]} Qd6 {[%emt 0:02:40]} 25. bxa6 {[%emt 0:08:31]} Rad8 {[%emt 0:05:53]} 26. Re4 {[%emt 0:05:32]} Nd5 {[%emt 0:02:26]} 27. Ba4 {[%emt 0:00:41]} Rg8 {[%emt 0:00:50]} 28. Bb5 {[%emt 0:02:25]} Nb6 {[%emt 0:06:54]} 29. Qe2 {[%emt 0:01:00]} g5 {[%emt 0:04:14]} 30. Qh5+ {[%emt 0:02:53]} Rg6 {[%emt 0:00:05]} 31. Bxg5 {[%emt 0:00:21]} Kg8 {[%emt 0:01:00]} 32. Bf4 {[%emt 0:02:01]} Qb4 {[%emt 0:01:05]} 33. Qe2 {[%emt 0:01:00]} Qxb5 {[%emt 0:12:01]} 34. Rxe7 {[%emt 0:00:16]} Nd5 {[%emt 0:00:41]} 35. Qe6+ {[%emt 0:01:45]} Kh8 {[%emt 0:00:19]} 36. Rb7 {[%emt 0:02:53]} Nxf4 {[%emt 0:00:43]} 37. Rxf4 {[%emt 0:00:17]} Qg5 {[%emt 0:00:24]} 38. Qe4 {[%emt 0:00:59]} Rxd4 {[%emt 0:07:05]} 39. Rb8+ {[%emt 0:00:20]} Kg7 {[%emt 0:00:06]} 40. Qb7+ {[%emt 0:00:46]} Kh6 {[%emt 0:00:13]} 41. Rxd4 {[%emt 0:30:19]} Qe3+ {[%emt 0:31:47]} 42. Kf1 {[%emt 0:00:03]} Qxd4 {[%emt 0:01:15]} 43. Qf3 {[%emt 0:00:34]} f5 {[%emt 0:00:00]} 44. Rb5 {[%emt 0:00:00]} c3 {[%emt 0:00:00]} 45. Qh3+ {[%emt 0:00:00]} Kg7 {[%emt 0:00:00]} 46. Qxc3 {[%emt 0:00:00]} Qxc3 {[%emt 0:00:00]} 47. bxc3 {[%emt 0:00:00]} Rxa6 {[%emt 0:00:00]} 48. Rb2 {[%emt 0:00:00]} Ra3 {[%emt 0:00:00]} 49. Rc2 {[%emt 0:00:00]} Kf6 {[%emt 0:00:00]} 50. Kf2 {[%emt 0:00:00]} Ke5 {[%emt 0:00:00]} 51. Kf3 {[%emt 0:00:00]} h5 {[%emt 0:00:00]} 52. Ke3 {[%emt 0:00:00]} h4 {[%emt 0:00:00]} 53. Kd3 {[%emt 0:00:00]} f4 {[%emt 0:00:00]} 54. Re2+ {[%emt 0:00:00]} Kf5 {[%emt 0:00:00]} 55. h3 {[%emt 0:00:00]} Kg5 {[%emt 0:00:00]} 56. Re5+ {[%emt 0:00:00]} Kf6 {[%emt 0:00:00]} 57. Rh5 {[%emt 0:00:00]} Rxa2 {[%emt 0:00:59]} 58. Rxh4 {[%emt 0:00:00]} Rxg2 {[%emt 0:03:04]} 59. Rxf4+ {[%emt 0:00:00]} Ke5 {[%emt 0:00:03]} 60. Rg4 {[%emt 0:00:00]} Rh2 {[%emt 0:00:18]} 61. h4 {[%emt 0:00:00]} Kf5 {[%emt 0:02:58]} 62. Rd4 {[%emt 0:00:00]} Ra2 {[%emt 0:00:31]} 63. Rb4 {[%emt 0:00:00]} Ra8 {[%emt 0:01:00]} 64. Rb5+ {[%emt 0:00:00]} Ke6 {[%emt 0:00:10]} 65. c4 {[%emt 0:00:08]} Kd6 {[%emt 0:01:12]} 66. h5 {[%emt 0:00:24]} Rg8 {[%emt 0:00:27]} 67. Rd5+ {[%emt 0:01:55]} Ke6 {[%emt 0:00:07]} 68. Kd4 {[%emt 0:00:30]} Rg4+ {[%emt 0:00:24]} 69. Kc5 {[%emt 0:00:10]} Rh4 {[%emt 0:00:22]} 70. Kb5 {[%emt 0:01:20]} Rh1 {[%emt 0:00:29]} 71. Kc6 {[%emt 0:00:36]} Ke7 {[%emt 0:01:37]} 72. c5 {[%emt 0:00:16]} Ra1 {[%emt 0:01:13]} 73. Rd7+ {[%emt 0:02:00]} Ke8 {[%emt 0:00:05]} 74. Rh7 {[%emt 0:01:50]} Kd8 {[%emt 0:00:21]} 75. h6 {[%emt 0:00:44]} Ra6+ {[%emt 0:00:12]} 76. Kb7 {[%emt 0:00:56]} Ra1 {[%emt 0:00:49]} 77. Rg7 {[%emt 0:00:38]} Rb1+ {[%emt 0:00:08]} 78. Kc6 {[%emt 0:00:05]} 1-0

[Event "44th Chess Olympiad Women 2022"]
[Site "Chennai"]
[Date "2022.08.02"]
[Round "5.40"]
[White "Park, Haneul"]
[Black "Bacic, Kristina"]
[Result "0-1"]
[ECO "D18"]
[WhiteElo "1531"]
[BlackElo "1866"]
[Annotator "NA RC COMBH"]
[PlyCount "68"]
[EventDate "2022.07.29"]
[EventType "team-tourn"]
[EventCountry "IND"]
[SourceTitle "playchess.com"]
[Source "ChessBase"]
[SourceQuality "1"]
[WhiteTeam "Korea"]
[BlackTeam "Montenegro"]
[WhiteTeamCountry "KOR"]
[BlackTeamCountry "MNE"]
[TimeControl "40/5400+30:1800+30"]

1. d4 {[%emt 0:00:03]} d5 {[%emt 0:00:10]} 2. c4 {[%emt 0:00:04]} c6 {[%emt 0:00:06]} 3. Nf3 {[%emt 0:00:04]} Nf6 {[%emt 0:00:06]} 4. Nc3 {[%emt 0:00:06]} dxc4 {[%emt 0:00:07]} 5. a4 {[%emt 0:00:39]} Bf5 {[%emt 0:00:22]} 6. e3 {[%emt 0:01:16]} e6 {[%emt 0:00:34]} 7. Bxc4 {[%emt 0:01:33]} Nbd7 {[%emt 0:00:50]} 8. O-O {[%emt 0:02:21]} Be7 {[%emt 0:01:26]} 9. h3 {[%emt 0:08:59]} O-O {[%emt 0:01:21]} 10. Re1 {[%emt 0:09:56]} Ne4 {[%emt 0:05:36]} 11. Nxe4 {[%emt 0:12:57]} Bxe4 {[%emt 0:00:06]} 12. Bd3 {[%emt 0:00:37]} Nf6 {[%emt 0:05:07]} 13. Bxe4 {[%emt 0:11:44]} Nxe4 {[%emt 0:00:06]} 14. Qb3 {[%emt 0:01:30]} Qb6 {[%emt 0:08:28]} 15. Qd3 {[%emt 0:11:02]} Nf6 {[%emt 0:04:29]} 16. Bd2 {[%emt 0:03:41]} Rfd8 {[%emt 0:08:03]} 17. Ne5 {[%emt 0:05:35]} c5 {[%emt 0:10:28]} 18. a5 {[%emt 0:03:50]} Qd6 {[%emt 0:08:36]} 19. Nc4 {[%emt 0:08:47]} Qd5 {[%emt 0:06:30]} 20. Bc3 {[%emt 0:01:25]} Ne4 {[%emt 0:12:22]} 21. Nd2 {[%emt 0:05:39]} Nxd2 {[%emt 0:05:23]} 22. Qxd2 {[%emt 0:00:58]} Bf6 {[%emt 0:06:52]} 23. Rad1 {[%emt 0:02:20]} cxd4 {[%emt 0:02:08]} 24. Bxd4 {[%emt 0:02:39]} Bxd4 {[%emt 0:01:39]} 25. exd4 {[%emt 0:00:08]} Rac8 {[%emt 0:02:26]} 26. Rc1 {[%emt 0:01:34]} Rxc1 {[%emt 0:01:08]} 27. Rxc1 {[%emt 0:00:09]} e5 {[%emt 0:01:27]} 28. Rc7 {[%emt 0:01:01]} exd4 {[%emt 0:02:10]} 29. a6 {[%emt 0:01:48]} bxa6 {[%emt 0:01:49]} 30. Rxa7 {[%emt 0:00:14]} Qc4 {[%emt 0:01:55]} 31. Qa5 {[%emt 0:01:47]} Re8 {[%emt 0:01:55]} 32. Rxa6 {[%emt 0:01:27]} g6 {[%emt 0:01:47]} 33. Qa4 {[%emt 0:00:28]} Qc1+ {[%emt 0:00:30]} 34. Kh2 {[%emt 0:00:32]} Qf4+ {[%emt 0:00:10]} 0-1

[Event "44th Chess Olympiad Women 2022"]
[Site "Chennai"]
[Date "2022.08.02"]
[Round "5.40"]
[White "Mosurovic, Milena"]
[Black "Kang, Sohyun"]
[Result "1/2-1/2"]
[ECO "C00"]
[WhiteElo "1452"]
[BlackElo "1593"]
[Annotator "NA RC COMBH"]
[PlyCount "97"]
[EventDate "2022.07.29"]
[EventType "team-tourn"]
[EventCountry "IND"]
[SourceTitle "playchess.com"]
[Source "ChessBase"]
[SourceQuality "1"]
[WhiteTeam "Montenegro"]
[BlackTeam "Korea"]
[WhiteTeamCountry "MNE"]
[BlackTeamCountry "KOR"]
[TimeControl "40/5400+30:1800+30"]

1. e4 {[%emt 0:00:03]} e6 {[%emt 0:00:06]} 2. d3 {[%emt 0:00:35]} d5 {[%emt 0:00:16]} 3. Nd2 {[%emt 0:00:53]} c5 {[%emt 0:00:45]} 4. g3 {[%emt 0:03:30]} Nc6 {[%emt 0:01:19]} 5. Bg2 {[%emt 0:01:57]} a6 {[%emt 0:04:13]} 6. Ngf3 {[%emt 0:06:46]} Bd6 {[%emt 0:01:48]} 7. O-O {[%emt 0:00:39]} Nge7 {[%emt 0:00:54]} 8. Re1 {[%emt 0:03:09]} Qc7 {[%emt 0:00:47]} 9. a3 {[%emt 0:05:46]} O-O {[%emt 0:00:26]} 10. Qe2 {[%emt 0:01:10]} f6 {[%emt 0:02:32]} 11. b3 {[%emt 0:05:19]} Bd7 {[%emt 0:02:16]} 12. Bb2 {[%emt 0:00:32]} d4 {[%emt 0:00:34]} 13. Nc4 {[%emt 0:02:47]} e5 {[%emt 0:02:04]} 14. a4 {[%emt 0:04:43]} b5 {[%emt 0:08:41]} 15. axb5 {[%emt 0:01:47]} axb5 {[%emt 0:00:04]} 16. Ncd2 {[%emt 0:01:06]} Be6 {[%emt 0:03:38]} 17. h4 {[%emt 0:12:13]} Rfb8 {[%emt 0:14:18]} 18. h5 {[%emt 0:07:23]} Nb4 {[%emt 0:09:47]} 19. Nf1 {[%emt 0:02:08]} c4 {[%emt 0:07:36]} 20. Rxa8 {[%emt 0:07:11]} Rxa8 {[%emt 0:00:27]} 21. Nxd4 {[%emt 0:11:59]} exd4 {[%emt 0:02:04]} 22. e5 {[%emt 0:00:12]} Ra6 {[%emt 0:06:55]} 23. exf6 {[%emt 0:04:40]} Bc5 {[%emt 0:07:13]} 24. fxe7 {[%emt 0:00:57]} Qxe7 {[%emt 0:00:48]} 25. dxc4 {[%emt 0:01:20]} bxc4 {[%emt 0:04:00]} 26. bxc4 {[%emt 0:00:16]} Qf7 {[%emt 0:04:10]} 27. Bd5 {[%emt 0:04:06]} Bxd5 {[%emt 0:00:23]} 28. cxd5 {[%emt 0:00:43]} Ra2 {[%emt 0:02:24]} 29. Rb1 {[%emt 0:06:07]} d3 {[%emt 0:02:00]} 30. cxd3 {[%emt 0:01:34]} Nxd3 {[%emt 0:00:14]} 31. Ne3 {[%emt 0:01:34]} Bxe3 {[%emt 0:06:16]} 32. fxe3 {[%emt 0:00:21]} Qxd5 {[%emt 0:00:41]} 33. Qc2 {[%emt 0:01:09]} Nxb2 {[%emt 0:01:44]} 34. Rxb2 {[%emt 0:00:04]} Rxb2 {[%emt 0:00:04]} 35. Qxb2 {[%emt 0:00:07]} Qxh5 {[%emt 0:00:13]} 36. Qb8+ {[%emt 0:00:34]} Kf7 {[%emt 0:00:04]} 37. Qc7+ {[%emt 0:00:09]} Kf6 {[%emt 0:00:18]} 38. Qd6+ {[%emt 0:00:20]} Kf7 {[%emt 0:00:58]} 39. Qd7+ {[%emt 0:00:21]} Kf6 {[%emt 0:02:50]} 40. Qd6+ {[%emt 0:00:20]} Kf5 {[%emt 0:02:45]} 41. Qf4+ {[%emt 0:30:19]} Ke6 {[%emt 0:30:22]} 42. Qe4+ {[%emt 0:00:39]} Qe5 {[%emt 0:00:00]} 43. Qg4+ {[%emt 0:00:00]} Kd5 {[%emt 0:00:00]} 44. Kf2 {[%emt 0:00:00]} Qb2+ {[%emt 0:00:00]} 45. Kf3 {[%emt 0:00:00]} Qf6+ {[%emt 0:00:00]} 46. Ke2 {[%emt 0:00:00]} Qa6+ {[%emt 0:00:00]} 47. Kf2 {[%emt 0:00:00]} Qf6+ {[%emt 0:00:00]} 48. Ke2 {[%emt 0:00:00]} Qb2+ {[%emt 0:00:00]} 49. Kf3 {[%emt 0:00:00]} 1/2-1/2